fUST/lending_fUST_20260531
["ID","MTS","AMOUNT","RATE_DAILY","PERIOD"]
[423519024,1780186232000,-500.0,8.219e-05,2]
[423519018,1780186232000,-500.0,8.219e-05,2]
[423519038,1780186232000,-500.0,8.219e-05,2]
[423519037,1780186232000,-365.0805478,8.219e-05,2]
[423519034,1780186232000,-500.0,8.219e-05,2]
[423519032,1780186232000,-500.0,8.219e-05,2]
[423519035,1780186232000,-500.0,8.219e-05,2]
[423519030,1780186232000,-500.0,8.219e-05,2]
[423519033,1780186232000,-500.0,8.219e-05,2]
[423519029,1780186232000,-500.0,8.219e-05,2]
[423519031,1780186232000,-500.0,8.219e-05,2]
[423519028,1780186232000,-500.0,8.219e-05,2]
[423519025,1780186232000,-500.0,8.219e-05,2]
[423519036,1780186232000,-1121.98,8.219e-05,2]
[423519026,1780186232000,-500.0,8.219e-05,2]
[423519020,1780186232000,-500.0,8.219e-05,2]
[423519022,1780186232000,-618.84274705,8.219e-05,2]
[423519021,1780186232000,-583.81,8.219e-05,2]
[423519019,1780186232000,-510.26,8.219e-05,2]
[423519016,1780186232000,-500.0,8.219e-05,2]
[423519027,1780186232000,-500.0,8.219e-05,2]
[423519047,1780186233000,-500.0,8.219e-05,2]
[423519043,1780186233000,-500.0,8.219e-05,2]
[423519041,1780186233000,-500.0,8.219e-05,2]
[423519042,1780186233000,-500.0,8.219e-05,2]
[423519040,1780186233000,-535.79921182,8.219e-05,2]
[423519046,1780186233000,-500.0,8.219e-05,2]
[423519039,1780186233000,-61.62078818,8.219e-05,2]
[423519045,1780186233000,-500.0,8.219e-05,2]
[423519049,1780186233000,-500.0,8.219e-05,2]
[423519048,1780186233000,-299.38,8.219e-05,2]
[423519051,1780186233000,-500.0,8.219e-05,2]
[423519044,1780186233000,-500.0,8.219e-05,2]
[423519052,1780186233000,-557.80685018,8.219e-05,2]
[423519050,1780186233000,-500.0,8.219e-05,2]
[423519126,1780186238000,-5000.0,8.137e-05,2]
[423519212,1780186239000,-470.52,8.493e-05,2]
[423519218,1780186239000,-500.0,8.493e-05,2]
[423519216,1780186239000,-500.0,8.493e-05,2]
[423519207,1780186239000,-500.0,8.493e-05,2]
[423519222,1780186239000,-500.0,8.493e-05,2]
[423519202,1780186239000,-500.0,8.493e-05,2]
[423519204,1780186239000,-500.0,8.493e-05,2]
[423519196,1780186239000,-206.697,8.3e-05,2]
[423519198,1780186239000,-500.0,8.493e-05,2]
[423519193,1780186239000,-500.0,8.219e-05,2]
[423519200,1780186239000,-500.0,8.493e-05,2]
[423519210,1780186239000,-501.95,8.493e-05,2]
[423519214,1780186239000,-310.65,8.493e-05,2]
[423519224,1780186239000,-500.0,8.493e-05,2]
[423519228,1780186239000,-500.0,8.493e-05,2]
[423519220,1780186239000,-367.79280704,8.493e-05,2]
[423519226,1780186239000,-500.0,8.493e-05,2]
[423519232,1780186239000,-857.76,8.493e-05,2]
[423519234,1780186239000,-500.0,8.493e-05,2]
[423519236,1780186239000,-500.0,8.493e-05,2]
[423519230,1780186239000,-500.0,8.493e-05,2]
[423519240,1780186239000,-500.0,8.493e-05,2]
[423519246,1780186239000,-500.0,8.493e-05,2]
[423519248,1780186239000,-500.0,8.493e-05,2]
[423519244,1780186239000,-500.0,8.493e-05,2]
[423519238,1780186239000,-500.0,8.493e-05,2]
[423519189,1780186239000,-640.89873058,8.219e-05,2]
[423519205,1780186239000,-500.0,8.493e-05,2]
[423519187,1780186239000,-233.23067659,8.219e-05,2]
[423519135,1780186239000,-500.0,8.219e-05,2]
[423519183,1780186239000,-266.76932341,8.219e-05,2]
[423519139,1780186239000,-710.7,8.219e-05,2]
[423519147,1780186239000,-500.0,8.219e-05,2]
[423519145,1780186239000,-500.0,8.219e-05,2]
[423519149,1780186239000,-500.0,8.219e-05,2]
[423519137,1780186239000,-500.0,8.219e-05,2]
[423519151,1780186239000,-725.02,8.219e-05,2]
[423519141,1780186239000,-421.8,8.219e-05,2]
[423519133,1780186239000,-992.17,8.219e-05,2]
[423519143,1780186239000,-500.0,8.219e-05,2]
[423519153,1780186239000,-500.0,8.219e-05,2]
[423519130,1780186239000,-500.0,8.219e-05,2]
[423519128,1780186239000,-459.94314982,8.219e-05,2]
[423519157,1780186239000,-379.86,8.219e-05,2]
[423519155,1780186239000,-500.0,8.219e-05,2]
[423519165,1780186239000,-1451.47,8.219e-05,2]
[423519163,1780186239000,-500.0,8.219e-05,2]
[423519161,1780186239000,-6772.63,8.219e-05,2]
[423519169,1780186239000,-283.27611127,8.219e-05,2]
[423519159,1780186239000,-502.31,8.219e-05,2]
[423519167,1780186239000,-500.0,8.219e-05,2]
[423519171,1780186239000,-500.0,8.219e-05,2]
[423519174,1780186239000,-188.81,8.219e-05,2]
[423519178,1780186239000,-1383.24,8.219e-05,2]
[423519242,1780186239000,-500.0,8.493e-05,2]
[423519176,1780186239000,-362.22094425,8.219e-05,2]
[423519180,1780186239000,-500.0,8.219e-05,2]
[423519181,1780186239000,-500.0,8.219e-05,2]
[423519191,1780186239000,-500.0,8.219e-05,2]
[423519250,1780186239000,-500.0,8.493e-05,2]
[423519327,1780186239000,-1017.75,8.493e-05,2]
[423519254,1780186239000,-500.0,8.493e-05,2]
[423519329,1780186239000,-500.0,8.493e-05,2]
[423519331,1780186239000,-992.17,8.493e-05,2]
[423519318,1780186239000,-500.0,8.493e-05,2]
[423519313,1780186239000,-500.0,8.493e-05,2]
[423519333,1780186239000,-500.0,8.493e-05,2]
[423519335,1780186239000,-500.0,8.493e-05,2]
[423519341,1780186239000,-500.0,8.493e-05,2]
[423519358,1780186239000,-1953.49557348,8.493e-05,2]
[423519337,1780186239000,-710.7,8.493e-05,2]
[423519343,1780186239000,-500.0,8.493e-05,2]
[423519354,1780186239000,-500.0,8.493e-05,2]
[423519356,1780186239000,-4819.13442652,8.493e-05,2]
[423519347,1780186239000,-500.0,8.493e-05,2]
[423519345,1780186239000,-725.02,8.493e-05,2]
[423519339,1780186239000,-500.0,8.493e-05,2]
[423519349,1780186239000,-500.0,8.493e-05,2]
[423519363,1780186239000,-1451.47,8.493e-05,2]
[423519367,1780186239000,-500.0,8.493e-05,2]
[423519365,1780186239000,-320.89,8.493e-05,2]
[423519369,1780186239000,-1383.24,8.493e-05,2]
[423519371,1780186239000,-500.0,8.493e-05,2]
[423519361,1780186239000,-500.0,8.493e-05,2]
[423519380,1780186239000,-500.0,8.493e-05,2]
[423519374,1780186239000,-500.0,8.493e-05,2]
[423519376,1780186239000,-500.0,8.493e-05,2]
[423519378,1780186239000,-500.0,8.493e-05,2]
[423519252,1780186239000,-640.94,8.493e-05,2]
[423519315,1780186239000,-195.31,8.493e-05,2]
[423519322,1780186239000,-500.0,8.493e-05,2]
[423519352,1780186239000,-502.31,8.493e-05,2]
[423519311,1780186239000,-500.0,8.493e-05,2]
[423519325,1780186239000,-251.77123708,8.493e-05,2]
[423519269,1780186239000,-292.91234293,8.493e-05,2]
[423519267,1780186239000,-500.0,8.493e-05,2]
[423519260,1780186239000,-500.0,8.493e-05,2]
[423519275,1780186239000,-500.0,8.493e-05,2]
[423519279,1780186239000,-226.72,8.493e-05,2]
[423519281,1780186239000,-500.0,8.493e-05,2]
[423519256,1780186239000,-381.14,8.493e-05,2]
[423519258,1780186239000,-500.0,8.493e-05,2]
[423519262,1780186239000,-181.03,8.493e-05,2]
[423519271,1780186239000,-430.3,8.493e-05,2]
[423519273,1780186239000,-500.0,8.493e-05,2]
[423519264,1780186239000,-217.6,8.493e-05,2]
[423519297,1780186239000,-500.0,8.493e-05,2]
[423519277,1780186239000,-164.83596564,8.493e-05,2]
[423519307,1780186239000,-311.61,8.493e-05,2]
[423519283,1780186239000,-365.99,8.493e-05,2]
[423519309,1780186239000,-500.0,8.493e-05,2]
[423519303,1780186239000,-597.42,8.493e-05,2]
[423519291,1780186239000,-500.0,8.493e-05,2]
[423519301,1780186239000,-1121.98,8.493e-05,2]
[423519305,1780186239000,-500.0,8.493e-05,2]
[423519287,1780186239000,-500.0,8.493e-05,2]
[423519289,1780186239000,-431.98,8.493e-05,2]
[423519293,1780186239000,-500.0,8.493e-05,2]
[423519299,1780186239000,-500.0,8.493e-05,2]
[423519285,1780186239000,-500.0,8.493e-05,2]
[423519295,1780186239000,-500.0,8.493e-05,2]
[423519489,1780186240000,-500.0,8.767e-05,2]
[423519477,1780186240000,-500.0,8.767e-05,2]
[423519480,1780186240000,-500.0,8.767e-05,2]
[423519474,1780186240000,-500.0,8.767e-05,2]
[423519481,1780186240000,-1017.75,8.767e-05,2]
[423519464,1780186240000,-500.0,8.767e-05,2]
[423519456,1780186240000,-96.14787131,8.767e-05,2]
[423519460,1780186240000,-500.0,8.767e-05,2]
[423519458,1780186240000,-403.85212869,8.767e-05,2]
[423519454,1780186240000,-181.01,8.767e-05,2]
[423519452,1780186240000,-226.71451431,8.767e-05,2]
[423519466,1780186240000,-1121.98,8.767e-05,2]
[423519462,1780186240000,-500.0,8.767e-05,2]
[423519476,1780186240000,-244.64585297,8.767e-05,2]
[423519512,1780186240000,-500.0,8.767e-05,2]
[423519472,1780186240000,-528.84,8.767e-05,2]
[423519468,1780186240000,-597.42,8.767e-05,2]
[423519485,1780186240000,-992.17,8.767e-05,2]
[423519470,1780186240000,-580.22,8.767e-05,2]
[423519491,1780186240000,-710.7,8.767e-05,2]
[423519487,1780186240000,-500.0,8.767e-05,2]
[423519496,1780186240000,-500.0,8.767e-05,2]
[423519498,1780186240000,-500.0,8.767e-05,2]
[423519501,1780186240000,-500.0,8.767e-05,2]
[423519502,1780186240000,-725.02,8.767e-05,2]
[423519508,1780186240000,-502.31,8.767e-05,2]
[423519514,1780186240000,-1451.47,8.767e-05,2]
[423519444,1780186240000,-500.0,8.767e-05,2]
[423519483,1780186240000,-500.0,8.767e-05,2]
[423519446,1780186240000,-238.74,8.767e-05,2]
[423519384,1780186240000,-2220.96302437,8.664e-05,2]
[423519448,1780186240000,-500.0,8.767e-05,2]
[423519382,1780186240000,-867.74802835,8.65e-05,2]
[423519510,1780186240000,-6772.63,8.767e-05,2]
[423519406,1780186240000,-576.23,8.767e-05,2]
[423519402,1780186240000,-500.0,8.767e-05,2]
[423519392,1780186240000,-1836.0,8.746e-05,2]
[423519388,1780186240000,-880.9718209,8.688e-05,2]
[423519404,1780186240000,-500.0,8.767e-05,2]
[423519410,1780186240000,-500.0,8.767e-05,2]
[423519396,1780186240000,-500.0,8.767e-05,2]
[423519394,1780186240000,-3629.0,8.746e-05,2]
[423519390,1780186240000,-2205.0,8.746e-05,2]
[423519400,1780186240000,-389.88,8.767e-05,2]
[423519398,1780186240000,-396.61,8.767e-05,2]
[423519386,1780186240000,-1121.4042087,8.688e-05,2]
[423519412,1780186240000,-857.76,8.767e-05,2]
[423519414,1780186240000,-314.37567727,8.767e-05,2]
[423519416,1780186240000,-154.42,8.767e-05,2]
[423519418,1780186240000,-514.99,8.767e-05,2]
[423519425,1780186240000,-500.0,8.767e-05,2]
[423519420,1780186240000,-451.65779679,8.767e-05,2]
[423519434,1780186240000,-640.94,8.767e-05,2]
[423519432,1780186240000,-274.65,8.767e-05,2]
[423519424,1780186240000,-48.34220321,8.767e-05,2]
[423519430,1780186240000,-500.0,8.767e-05,2]
[423519428,1780186240000,-500.0,8.767e-05,2]
[423519436,1780186240000,-618.62,8.767e-05,2]
[423519438,1780186240000,-597.2,8.767e-05,2]
[423519440,1780186240000,-500.0,8.767e-05,2]
[423519442,1780186240000,-452.25869377,8.767e-05,2]
[423519450,1780186240000,-500.0,8.767e-05,2]
[423519507,1780186240000,-500.0,8.767e-05,2]
[423519408,1780186240000,-400.6,8.767e-05,2]
[423519516,1780186240000,-500.0,8.767e-05,2]
[423519574,1780186240000,-500.0,9.041e-05,2]
[423519590,1780186240000,-500.0,9.041e-05,2]
[423519588,1780186240000,-710.7,9.041e-05,2]
[423519592,1780186240000,-500.0,9.041e-05,2]
[423519594,1780186240000,-500.0,9.041e-05,2]
[423519596,1780186240000,-725.02,9.041e-05,2]
[423519597,1780186240000,-500.0,9.041e-05,2]
[423519600,1780186240000,-500.0,9.041e-05,2]
[423519618,1780186240000,-500.0,9.041e-05,2]
[423519611,1780186240000,-1383.24,9.041e-05,2]
[423519614,1780186240000,-500.0,9.041e-05,2]
[423519605,1780186240000,-500.0,9.041e-05,2]
[423519613,1780186240000,-500.0,9.041e-05,2]
[423519586,1780186240000,-356.41663513,9.041e-05,2]
[423519620,1780186240000,-500.0,9.041e-05,2]
[423519616,1780186240000,-500.0,9.041e-05,2]
[423519622,1780186240000,-2220.96302437,9.11e-05,2]
[423519603,1780186240000,-6772.63,9.041e-05,2]
[423519639,1780186240000,-500.0,9.315e-05,2]
[423519607,1780186240000,-1451.47,9.041e-05,2]
[423519609,1780186240000,-500.0,9.041e-05,2]
[423519625,1780186240000,-600.0,9.221e-05,2]
[423519623,1780186240000,-10000.0,9.123e-05,2]
[423519629,1780186240000,-292.4,9.315e-05,2]
[423519631,1780186240000,-345.1,9.315e-05,2]
[423519633,1780186240000,-857.76,9.315e-05,2]
[423519635,1780186240000,-500.0,9.315e-05,2]
[423519637,1780186240000,-500.0,9.315e-05,2]
[423519601,1780186240000,-502.31,9.041e-05,2]
[423519576,1780186240000,-500.0,9.041e-05,2]
[423519627,1780186240000,-500.0,9.315e-05,2]
[423519580,1780186240000,-500.0,9.041e-05,2]
[423519578,1780186240000,-1017.75,9.041e-05,2]
[423519518,1780186240000,-1383.24,8.767e-05,2]
[423519538,1780186240000,-857.76,9.041e-05,2]
[423519527,1780186240000,-500.0,8.767e-05,2]
[423519520,1780186240000,-500.0,8.767e-05,2]
[423519522,1780186240000,-500.0,8.767e-05,2]
[423519530,1780186240000,-500.0,9.041e-05,2]
[423519523,1780186240000,-500.0,8.767e-05,2]
[423519540,1780186240000,-500.0,9.041e-05,2]
[423519525,1780186240000,-500.0,8.767e-05,2]
[423519542,1780186240000,-500.0,9.041e-05,2]
[423519534,1780186240000,-193.94,9.041e-05,2]
[423519536,1780186240000,-500.0,9.041e-05,2]
[423519532,1780186240000,-500.0,9.041e-05,2]
[423519554,1780186240000,-494.82,9.041e-05,2]
[423519505,1780186240000,-500.0,8.767e-05,2]
[423519558,1780186240000,-500.0,9.041e-05,2]
[423519546,1780186240000,-500.0,9.041e-05,2]
[423519582,1780186240000,-992.17,9.041e-05,2]
[423519561,1780186240000,-500.0,9.041e-05,2]
[423519548,1780186240000,-640.94,9.041e-05,2]
[423519567,1780186240000,-1121.98,9.041e-05,2]
[423519550,1780186240000,-500.0,9.041e-05,2]
[423519572,1780186240000,-500.0,9.041e-05,2]
[423519584,1780186240000,-500.0,9.041e-05,2]
[423519552,1780186240000,-500.0,9.041e-05,2]
[423519556,1780186240000,-245.05,9.041e-05,2]
[423519563,1780186240000,-500.0,9.041e-05,2]
[423519565,1780186240000,-500.0,9.041e-05,2]
[423519544,1780186240000,-219.1427892,9.041e-05,2]
[423519569,1780186240000,-597.42,9.041e-05,2]
[423519710,1780186241000,-2220.96302437,9.555e-05,2]
[423519720,1780186241000,-500.0,9.589e-05,2]
[423519718,1780186241000,-500.0,9.589e-05,2]
[423519700,1780186241000,-328.20603544,9.315e-05,2]
[423519698,1780186241000,-500.0,9.315e-05,2]
[423519712,1780186241000,-500.0,9.589e-05,2]
[423519696,1780186241000,-1383.24,9.315e-05,2]
[423519706,1780186241000,-346.27,9.315e-05,2]
[423519716,1780186241000,-500.0,9.589e-05,2]
[423519714,1780186241000,-857.76,9.589e-05,2]
[423519725,1780186241000,-408.35,9.589e-05,2]
[423519708,1780186241000,-264.55703312,9.444e-05,2]
[423519723,1780186241000,-500.0,9.589e-05,2]
[423519704,1780186241000,-500.0,9.315e-05,2]
[423519722,1780186241000,-640.94,9.589e-05,2]
[423519683,1780186241000,-267.86,9.315e-05,2]
[423519727,1780186241000,-500.0,9.589e-05,2]
[423519729,1780186241000,-500.0,9.589e-05,2]
[423519730,1780186241000,-500.0,9.589e-05,2]
[423519732,1780186241000,-597.42,9.589e-05,2]
[423519731,1780186241000,-1121.98,9.589e-05,2]
[423519733,1780186241000,-500.0,9.589e-05,2]
[423519702,1780186241000,-500.0,9.315e-05,2]
[423519685,1780186241000,-500.0,9.315e-05,2]
[423519689,1780186241000,-6772.63,9.315e-05,2]
[423519693,1780186241000,-1451.47,9.315e-05,2]
[423519736,1780186241000,-500.0,9.589e-05,2]
[423519645,1780186241000,-500.0,9.315e-05,2]
[423519643,1780186241000,-500.0,9.315e-05,2]
[423519647,1780186241000,-500.0,9.315e-05,2]
[423519649,1780186241000,-500.0,9.315e-05,2]
[423519641,1780186241000,-640.94,9.315e-05,2]
[423519674,1780186241000,-710.7,9.315e-05,2]
[423519663,1780186241000,-500.0,9.315e-05,2]
[423519657,1780186241000,-597.42,9.315e-05,2]
[423519667,1780186241000,-500.0,9.315e-05,2]
[423519651,1780186241000,-500.0,9.315e-05,2]
[423519655,1780186241000,-1121.98,9.315e-05,2]
[423519670,1780186241000,-992.17,9.315e-05,2]
[423519653,1780186241000,-186.47,9.315e-05,2]
[423519666,1780186241000,-1017.75,9.315e-05,2]
[423519659,1780186241000,-500.0,9.315e-05,2]
[423519672,1780186241000,-496.38015792,9.315e-05,2]
[423519687,1780186241000,-502.31,9.315e-05,2]
[423519691,1780186241000,-500.0,9.315e-05,2]
[423519676,1780186241000,-500.0,9.315e-05,2]
[423519694,1780186241000,-264.0165114,9.315e-05,2]
[423519678,1780186241000,-500.0,9.315e-05,2]
[423519679,1780186241000,-500.0,9.315e-05,2]
[423519681,1780186241000,-725.02,9.315e-05,2]
[423519661,1780186241000,-500.0,9.315e-05,2]
[423519743,1780186241000,-992.17,9.589e-05,2]
[423519747,1780186241000,-500.0,9.589e-05,2]
[423519808,1780186241000,-1121.98,9.863e-05,2]
[423519816,1780186241000,-500.0,9.863e-05,2]
[423519826,1780186241000,-992.17,9.863e-05,2]
[423519827,1780186241000,-710.7,9.863e-05,2]
[423519820,1780186241000,-500.0,9.863e-05,2]
[423519824,1780186241000,-1017.75,9.863e-05,2]
[423519823,1780186241000,-500.0,9.863e-05,2]
[423519825,1780186241000,-500.0,9.863e-05,2]
[423519828,1780186241000,-500.0,9.863e-05,2]
[423519831,1780186241000,-500.0,9.863e-05,2]
[423519833,1780186241000,-500.0,9.863e-05,2]
[423519846,1780186241000,-1383.24,9.863e-05,2]
[423519835,1780186241000,-725.02,9.863e-05,2]
[423519837,1780186241000,-502.31,9.863e-05,2]
[423519841,1780186241000,-500.0,9.863e-05,2]
[423519840,1780186241000,-6772.63,9.863e-05,2]
[423519848,1780186241000,-500.0,9.863e-05,2]
[423519850,1780186241000,-500.0,9.863e-05,2]
[423519857,1780186241000,-9666.89404268,0.0001,2]
[423519852,1780186241000,-500.0,9.863e-05,2]
[423519859,1780186241000,-200.81283522,0.0001,2]
[423519855,1780186241000,-1374.14,0.0001,30]
[423519738,1780186241000,-500.0,9.589e-05,2]
[423519793,1780186241000,-500.0,9.863e-05,2]
[423519797,1780186241000,-500.0,9.863e-05,2]
[423519844,1780186241000,-1451.47,9.863e-05,2]
[423519801,1780186241000,-500.0,9.863e-05,2]
[423519742,1780186241000,-500.0,9.589e-05,2]
[423519814,1780186241000,-597.42,9.863e-05,2]
[423519740,1780186241000,-1017.75,9.589e-05,2]
[423519749,1780186241000,-500.0,9.589e-05,2]
[423519746,1780186241000,-710.7,9.589e-05,2]
[423519751,1780186241000,-500.0,9.589e-05,2]
[423519756,1780186241000,-339.45229895,9.589e-05,2]
[423519758,1780186241000,-502.31,9.589e-05,2]
[423519760,1780186241000,-6772.63,9.589e-05,2]
[423519765,1780186241000,-1383.24,9.589e-05,2]
[423519770,1780186241000,-500.0,9.589e-05,2]
[423519754,1780186241000,-725.02,9.589e-05,2]
[423519785,1780186241000,-372.93,9.863e-05,2]
[423519763,1780186241000,-1451.47,9.589e-05,2]
[423519767,1780186241000,-500.0,9.589e-05,2]
[423519772,1780186241000,-500.0,9.589e-05,2]
[423519776,1780186241000,-500.0,9.863e-05,2]
[423519774,1780186241000,-775.01000003,9.6e-05,2]
[423519778,1780186241000,-857.76,9.863e-05,2]
[423519804,1780186241000,-500.0,9.863e-05,2]
[423519782,1780186241000,-500.0,9.863e-05,2]
[423519787,1780186241000,-500.0,9.863e-05,2]
[423519790,1780186241000,-640.94,9.863e-05,2]
[423519762,1780186241000,-500.0,9.589e-05,2]
[423519929,1780186242000,-500.0,0.00010136,2]
[423519924,1780186242000,-500.0,0.00010136,2]
[423519944,1780186242000,-6772.63,0.00010136,2]
[423519937,1780186242000,-500.0,0.00010136,2]
[423519935,1780186242000,-500.0,0.00010136,2]
[423519942,1780186242000,-502.31,0.00010136,2]
[423519933,1780186242000,-710.7,0.00010136,2]
[423519931,1780186242000,-992.17,0.00010136,2]
[423519946,1780186242000,-500.0,0.00010136,2]
[423519927,1780186242000,-1017.75,0.00010136,2]
[423519939,1780186242000,-500.0,0.00010136,2]
[423519950,1780186242000,-1383.24,0.00010136,2]
[423519941,1780186242000,-725.02,0.00010136,2]
[423519948,1780186242000,-1451.47,0.00010136,2]
[423519960,1780186242000,-720.0,0.00010143,2]
[423519952,1780186242000,-500.0,0.00010136,2]
[423519965,1780186242000,-151.0,0.000102,2]
[423519967,1780186242000,-151.0,0.000102,2]
[423519969,1780186242000,-10075.21349452,0.000103,2]
[423519954,1780186242000,-500.0,0.00010136,2]
[423519970,1780186242000,-10075.21349452,0.000104,2]
[423519956,1780186242000,-500.0,0.00010136,2]
[423519962,1780186242000,-10075.21349452,0.000102,2]
[423519972,1780186242000,-500.0,0.0001041,2]
[423519958,1780186242000,-325.08711468,0.0001014,2]
[423519974,1780186242000,-857.76,0.0001041,2]
[423519976,1780186242000,-401.3,0.0001041,2]
[423519925,1780186242000,-500.0,0.00010136,2]
[423519963,1780186242000,-151.0,0.000102,2]
[423519921,1780186242000,-500.0,0.00010136,2]
[423519865,1780186242000,-1103.64245734,0.0001,2]
[423519913,1780186242000,-500.0,0.00010136,2]
[423519861,1780186242000,-11050.0,0.0001,2]
[423519867,1780186242000,-1000.0,0.0001,2]
[423519869,1780186242000,-2220.96302437,0.0001,2]
[423519863,1780186242000,-10075.21349452,0.0001,2]
[423519871,1780186242000,-151.0,0.0001,2]
[423519885,1780186242000,-151.0,0.0001,2]
[423519887,1780186242000,-151.0,0.0001,2]
[423519895,1780186242000,-500.84389494,0.00010017,2]
[423519889,1780186242000,-151.0,0.0001,2]
[423519881,1780186242000,-151.0,0.0001,2]
[423519986,1780186242000,-500.0,0.0001041,2]
[423519883,1780186242000,-151.0,0.0001,2]
[423519897,1780186242000,-10075.21349452,0.000101,2]
[423519920,1780186242000,-597.42,0.00010136,2]
[423519875,1780186242000,-151.0,0.0001,2]
[423519879,1780186242000,-151.0,0.0001,2]
[423519891,1780186242000,-189.62753176,0.0001,2]
[423519893,1780186242000,-152.0,0.00010011,30]
[423519873,1780186242000,-151.0,0.0001,2]
[423519899,1780186242000,-500.0,0.00010136,2]
[423519911,1780186242000,-500.0,0.00010136,2]
[423519909,1780186242000,-500.0,0.00010136,2]
[423519903,1780186242000,-500.0,0.00010136,2]
[423519901,1780186242000,-857.76,0.00010136,2]
[423519905,1780186242000,-500.0,0.00010136,2]
[423519907,1780186242000,-640.94,0.00010136,2]
[423519915,1780186242000,-500.0,0.00010136,2]
[423519918,1780186242000,-1121.98,0.00010136,2]
[423519877,1780186242000,-151.0,0.0001,2]
[423519988,1780186242000,-500.0,0.0001041,2]
[423520090,1780186242000,-500.0,0.00010684,2]
[423519992,1780186242000,-597.42,0.0001041,2]
[423520048,1780186242000,-500.0,0.00010684,2]
[423520072,1780186242000,-500.0,0.00010684,2]
[423520060,1780186242000,-500.0,0.00010684,2]
[423520056,1780186242000,-500.0,0.00010684,2]
[423520052,1780186242000,-1121.98,0.00010684,2]
[423520054,1780186242000,-597.42,0.00010684,2]
[423520064,1780186242000,-500.0,0.00010684,2]
[423520058,1780186242000,-209.46238134,0.00010684,2]
[423520070,1780186242000,-500.0,0.00010684,2]
[423520066,1780186242000,-992.17,0.00010684,2]
[423520050,1780186242000,-500.0,0.00010684,2]
[423520062,1780186242000,-1017.75,0.00010684,2]
[423520074,1780186242000,-500.0,0.00010684,2]
[423520039,1780186242000,-10075.21349452,0.000106,2]
[423520080,1780186242000,-6772.63,0.00010684,2]
[423520088,1780186242000,-500.0,0.00010684,2]
[423520092,1780186242000,-10075.21349452,0.000107,2]
[423520084,1780186242000,-1451.47,0.00010684,2]
[423520094,1780186242000,-10075.21349452,0.000108,2]
[423520076,1780186242000,-725.02,0.00010684,2]
[423520078,1780186242000,-502.31,0.00010684,2]
[423520086,1780186242000,-1383.24,0.00010684,2]
[423520096,1780186242000,-10075.21349452,0.000109,2]
[423520099,1780186242000,-640.94,0.00010958,2]
[423520097,1780186242000,-857.76,0.00010958,2]
[423520101,1780186242000,-500.0,0.00010958,2]
[423520103,1780186242000,-500.0,0.00010958,2]
[423519995,1780186242000,-500.0,0.0001041,2]
[423520082,1780186242000,-500.0,0.00010684,2]
[423520027,1780186242000,-500.0,0.0001041,2]
[423520068,1780186242000,-710.7,0.00010684,2]
[423520046,1780186242000,-640.94,0.00010684,2]
[423519993,1780186242000,-500.0,0.0001041,2]
[423520013,1780186242000,-502.31,0.0001041,2]
[423519990,1780186242000,-1121.98,0.0001041,2]
[423519997,1780186242000,-500.0,0.0001041,2]
[423519999,1780186242000,-1017.75,0.0001041,2]
[423519978,1780186242000,-500.0,0.0001041,2]
[423519984,1780186242000,-500.0,0.0001041,2]
[423519982,1780186242000,-500.0,0.0001041,2]
[423519980,1780186242000,-640.94,0.0001041,2]
[423520022,1780186242000,-554.57421625,0.0001041,2]
[423520006,1780186242000,-500.0,0.0001041,2]
[423520017,1780186242000,-500.0,0.0001041,2]
[423520037,1780186242000,-10075.21349452,0.000105,2]
[423520021,1780186242000,-1383.24,0.0001041,2]
[423520008,1780186242000,-500.0,0.0001041,2]